bitfinex/quotes_BTCUSD_20240727
["timestamp","ask_amount","ask_price","bid_price","bid_amount"]
[1722059505568,1.4230631,68051.0,68050.0,0.005924]
[1722059506013,1.4230631,68051.0,68050.0,0.0074782]
[1722059506268,1.42287817,68051.0,68050.0,0.005924]
[1722059508007,1.42287817,68051.0,68050.0,0.0074782]
[1722059508207,1.42287817,68051.0,68050.0,0.005924]
[1722059508627,1.42287817,68051.0,68050.0,0.0074782]
[1722059509061,1.42287817,68051.0,68050.0,0.005924]
[1722059509232,1.42287817,68051.0,68050.0,0.0074782]
[1722059509433,1.42287817,68051.0,68050.0,0.005924]
[1722059509882,1.42287817,68051.0,68050.0,0.0074782]
[1722059510088,1.285539,68051.0,68050.0,0.005924]
[1722059510271,1.42220301,68051.0,68050.0,0.005924]
[1722059510647,1.44526161,68051.0,68050.0,0.005924]
[1722059511075,1.44530071,68051.0,68050.0,0.005924]
[1722059511915,1.44530071,68051.0,68050.0,0.0074782]
[1722059512117,1.44530071,68051.0,68050.0,0.005924]
[1722059512323,1.44530071,68051.0,68050.0,0.0074782]
[1722059512671,1.44530071,68051.0,68050.0,0.005924]
[1722059513035,1.3085976,68051.0,68050.0,0.005924]
[1722059513240,1.4452907,68051.0,68050.0,0.005924]
[1722059513456,1.5739085,68051.0,68050.0,0.005924]
[1722059513642,1.72416807,68051.0,68050.0,0.005924]
[1722059513822,2.01806507,68051.0,68050.0,0.005924]
[1722059514453,1.99500647,68051.0,68050.0,0.005924]
[1722059514771,1.7947469,68051.0,68050.0,0.005924]
[1722059515559,1.8447469,68051.0,68050.0,0.005924]
[1722059515785,1.7947469,68051.0,68050.0,0.005924]
[1722059516478,1.6580538,68051.0,68050.0,0.005924]
[1722059516733,1.79461267,68051.0,68050.0,0.005924]
[1722059517968,1.36865685,68051.0,68050.0,0.005924]
[1722059518229,1.26519787,68051.0,68050.0,0.005924]
[1722059519967,1.26525989,68051.0,68050.0,0.005924]
[1722059522677,1.28831883,68051.0,68050.0,0.005924]
[1722059523134,1.26525989,68051.0,68050.0,0.005924]
[1722059525816,1.28891317,68051.0,68050.0,0.005924]
[1722059529171,1.15169785,68051.0,68050.0,0.005924]
[1722059529370,1.28907818,68051.0,68050.0,0.005924]
[1722059531192,1.26601933,68051.0,68050.0,0.005924]
[1722059532199,1.34781933,68051.0,68050.0,0.005924]
[1722059532727,1.34777728,68051.0,68050.0,0.005924]
[1722059535730,1.37083604,68051.0,68050.0,0.005924]
[1722059536156,1.37071721,68051.0,68050.0,0.005924]
[1722059539664,1.22342778,68051.0,68050.0,0.005924]
[1722059540144,1.37037578,68051.0,68050.0,0.005924]
[1722059541996,1.43377578,68051.0,68050.0,0.005924]
[1722059543130,1.43359004,68051.0,68050.0,0.005924]
[1722059545284,1.41053128,68051.0,68050.0,0.005924]
[1722059545694,1.77104608,68051.0,68050.0,0.005924]
[1722059546308,1.6343538,68051.0,68050.0,0.005924]
[1722059546515,1.77066008,68051.0,68050.0,0.005924]
[1722059548276,1.72066008,68051.0,68050.0,0.005924]
[1722059548494,1.77066008,68051.0,68050.0,0.005924]
[1722059548745,1.79372098,68051.0,68050.0,0.005924]
[1722059549687,1.74441945,68051.0,68050.0,0.005924]
[1722059550089,1.72135855,68051.0,68050.0,0.005924]
[1722059550304,1.79785855,68051.0,68050.0,0.005924]
[1722059550870,1.6608538,68051.0,68050.0,0.005924]
[1722059550995,1.84821051,68051.0,68050.0,0.005924]
[1722059551193,1.96022069,68051.0,68050.0,0.005924]
[1722059551709,2.25411769,68051.0,68050.0,0.005924]
[1722059551912,1.96040452,68051.0,68050.0,0.005924]
[1722059552111,1.96040452,68051.0,68050.0,0.002924]
[1722059552347,1.96940452,68051.0,68050.0,0.003924]
[1722059552865,1.85739434,68051.0,68050.0,0.001924]
[1722059553269,1.85739434,68051.0,68050.0,0.002924]
[1722059553270,1.7288538,68051.0,68050.0,0.002924]
[1722059553471,2.18245423,68051.0,68050.0,0.002924]
[1722059553686,1.88855723,68051.0,68050.0,0.002924]
[1722059554717,2.18050427,68051.0,68050.0,0.002924]
[1722059556575,2.04386263,68051.0,68050.0,0.002924]
[1722059556816,2.18044461,68051.0,68050.0,0.002924]
[1722059557227,2.20344461,68051.0,68050.0,0.002924]
[1722059557910,2.18038282,68051.0,68050.0,0.002924]
[1722059560043,2.04380084,68051.0,68050.0,0.002924]
[1722059560210,2.17988224,68051.0,68050.0,0.002924]
[1722059561099,2.20294403,68051.0,68050.0,0.002924]
[1722059561548,2.17988224,68051.0,68050.0,0.002924]
[1722059561794,1.88598524,68051.0,68050.0,0.002924]
[1722059562128,2.17988224,68051.0,68050.0,0.002924]
[1722059562948,1.88598524,68051.0,68050.0,0.002924]
[1722059563601,2.18044772,68051.0,68050.0,0.002924]
[1722059564335,1.81005072,68051.0,68050.0,0.002924]
[1722059564540,1.88655072,68051.0,68050.0,0.002924]
[1722059565167,1.90961246,68051.0,68050.0,0.002924]
[1722059565821,1.84391246,68051.0,68050.0,0.002924]
[1722059566987,1.84452202,68051.0,68050.0,0.002924]
[1722059570276,1.8449254,68051.0,68050.0,0.002924]
[1722059573925,1.84498407,68051.0,68050.0,0.002924]
[1722059574683,1.82192233,68051.0,68050.0,0.002924]
[1722059577302,1.82157598,68051.0,68050.0,0.002924]
[1722059577688,1.84463755,68051.0,68050.0,0.002924]
[1722059578089,1.82157598,68051.0,68050.0,0.002924]
[1722059580585,1.82149654,68051.0,68050.0,0.002924]
[1722059581461,1.84455811,68051.0,68050.0,0.002924]
[1722059583498,1.84457652,68051.0,68050.0,0.002924]
[1722059585271,2.25213615,68051.0,68050.0,0.002924]
[1722059585682,2.13847352,68051.0,68050.0,0.002924]
[1722059585883,2.11541195,68051.0,68050.0,0.002924]
[1722059586645,2.11454106,68051.0,68050.0,0.002924]
[1722059586945,1.97810084,68051.0,68050.0,0.002924]
[1722059587147,2.11454032,68051.0,68050.0,0.002924]
[1722059588041,2.1145249,68051.0,68050.0,0.002924]
[1722059588695,2.1763249,68051.0,68050.0,0.002924]
[1722059589305,2.19938647,68051.0,68050.0,0.002924]
[1722059590150,2.19913099,68051.0,68050.0,0.002924]
[1722059592161,1.90523399,68051.0,68050.0,0.002924]
[1722059592945,2.17606942,68051.0,68050.0,0.002924]
[1722059593574,2.03990084,68051.0,68050.0,0.002924]
[1722059593774,2.17628929,68051.0,68050.0,0.002924]
[1722059596430,1.372631,68046.0,68045.0,0.000913]
[1722059596632,1.69849778,68046.0,68045.0,0.000913]
[1722059596850,1.78345086,68046.0,68045.0,0.000913]
[1722059597054,1.9411067,68046.0,68045.0,0.000913]
[1722059597253,2.13613702,68046.0,68045.0,0.000913]
[1722059597467,2.15919926,68046.0,68045.0,0.000913]
[1722059598005,2.31245883,68046.0,68045.0,0.000913]
[1722059599170,2.31645883,68046.0,68045.0,0.000913]
[1722059599594,2.16619926,68046.0,68045.0,0.000913]
[1722059600411,2.16590831,68046.0,68045.0,0.000913]
[1722059601432,2.14284607,68046.0,68045.0,0.000913]
[1722059602172,2.1659045,68046.0,68045.0,0.000913]
[1722059603869,2.16582673,68046.0,68045.0,0.000913]
[1722059606172,2.18888897,68046.0,68045.0,0.000913]
[1722059607146,2.05314137,68046.0,68045.0,0.000913]
[1722059607349,2.18900416,68046.0,68045.0,0.000913]
[1722059608540,2.33926373,68046.0,68045.0,0.000913]
[1722059609358,2.18900416,68046.0,68045.0,0.000913]
[1722059609966,2.19812019,68046.0,68045.0,0.000913]
[1722059610600,2.0622574,68046.0,68045.0,0.000913]
[1722059610750,2.19803558,68046.0,68045.0,0.000913]
[1722059611153,2.19803467,68046.0,68045.0,0.000913]
[1722059611355,2.17497243,68046.0,68045.0,0.000913]
[1722059613218,2.325232,68046.0,68045.0,0.000913]
[1722059614385,2.32525258,68046.0,68045.0,0.000913]
[1722059614731,2.17499301,68046.0,68045.0,0.000913]
[1722059616011,2.19805525,68046.0,68045.0,0.000913]
[1722059616364,2.17499301,68046.0,68045.0,0.000913]
[1722059617807,2.17509364,68046.0,68045.0,0.000913]
[1722059619204,2.19815588,68046.0,68045.0,0.000913]
[1722059620038,2.41431545,68046.0,68045.0,0.000913]
[1722059620236,2.32535321,68046.0,68045.0,0.000913]
[1722059623778,2.34841557,68046.0,68045.0,0.000913]
[1722059623951,2.32535321,68046.0,68045.0,0.000913]
[1722059624619,2.32246602,68046.0,68045.0,0.000913]
[1722059625153,2.17220645,68046.0,68045.0,0.000913]
[1722059625475,2.08900645,68046.0,68045.0,0.000913]
[1722059627183,2.1120686,68046.0,68045.0,0.000913]
[1722059627620,2.08901017,68046.0,68045.0,0.000913]
[1722059631227,2.08951552,68046.0,68045.0,0.000913]
[1722059631473,2.06645337,68046.0,68045.0,0.000913]
[1722059632617,2.20755337,68046.0,68045.0,0.000913]
[1722059633328,2.14415337,68046.0,68045.0,0.000913]
[1722059634732,2.14409365,68046.0,68045.0,0.000913]
[1722059635508,2.29435322,68046.0,68045.0,0.000913]
[1722059638059,2.1608963,68046.0,68045.0,0.000913]
[1722059638255,2.29424488,68046.0,68045.0,0.000913]
[1722059638869,2.31730724,68046.0,68045.0,0.000913]
[1722059639584,2.29424488,68046.0,68045.0,0.000913]
[1722059640517,2.14398531,68046.0,68045.0,0.000913]
[1722059640914,2.01063673,68046.0,68045.0,0.000913]
[1722059641113,2.14425629,68046.0,68045.0,0.000913]
[1722059642959,2.16731865,68046.0,68045.0,0.000913]
[1722059644112,2.14425629,68046.0,68045.0,0.000913]
[1722059644310,2.14405472,68046.0,68045.0,0.000913]
[1722059647091,2.16711708,68046.0,68045.0,0.000913]
[1722059647731,2.03369909,68046.0,68045.0,0.000913]
[1722059648042,2.14415622,68046.0,68045.0,0.000913]
[1722059648803,2.16108563,68046.0,68045.0,0.000913]
[1722059651080,2.02756614,68046.0,68045.0,0.000913]
[1722059651270,2.18414984,68046.0,68045.0,0.000913]
[1722059651655,2.16108748,68046.0,68045.0,0.000913]
[1722059652050,2.14415807,68046.0,68045.0,0.000913]
[1722059653632,2.06765807,68046.0,68045.0,0.000913]
[1722059653765,2.14415807,68046.0,68045.0,0.000913]
[1722059654435,2.01063673,68046.0,68045.0,0.000913]
[1722059654635,2.14462736,68046.0,68045.0,0.000913]
[1722059658018,2.14458714,68046.0,68045.0,0.000913]
[1722059658389,2.22427623,68046.0,68045.0,0.000913]
[1722059658762,2.14458713,68046.0,68045.0,0.000913]
[1722059659438,2.14428463,68046.0,68045.0,0.000913]
[1722059659659,2.16734691,68046.0,68045.0,0.000913]
[1722059661368,2.14428463,68046.0,68045.0,0.000913]
[1722059661506,2.14426783,68046.0,68045.0,0.000913]
[1722059662750,2.2945274,68046.0,68045.0,0.000913]
[1722059664394,2.16733019,68046.0,68045.0,0.000913]
[1722059664746,2.14426783,68046.0,68045.0,0.000913]
[1722059667963,2.16733019,68046.0,68045.0,0.000913]
[1722059668165,2.14426783,68046.0,68045.0,0.000913]
[1722059668372,2.14410409,68046.0,68045.0,0.000913]
[1722059671152,2.16716645,68046.0,68045.0,0.000913]
[1722059671609,2.16682027,68046.0,68045.0,0.000913]
[1722059672231,2.14375791,68046.0,68045.0,0.000913]
[1722059675291,2.01063673,68046.0,68045.0,0.000913]
[1722059675515,2.16679252,68046.0,68045.0,0.000913]
[1722059677542,2.14373033,68046.0,68045.0,0.000913]
[1722059678901,2.06572374,68046.0,68045.0,0.000913]
[1722059679143,2.01572374,68046.0,68045.0,0.062413]
[1722059679528,2.06572374,68046.0,68045.0,0.062413]
[1722059680541,2.08878581,68046.0,68045.0,0.062413]
[1722059682194,2.00563429,68046.0,68045.0,0.062413]
[1722059682332,2.08911236,68046.0,68045.0,0.062413]
[1722059684990,2.06605029,68046.0,68045.0,0.062413]
[1722059685595,2.01649089,68046.0,68045.0,0.062413]
[1722059685793,2.06620804,68046.0,68045.0,0.062413]
[1722059687485,1.77229004,68046.0,68045.0,0.062413]
[1722059688388,1.7953483,68046.0,68045.0,0.062413]
[1722059688599,1.81841037,68046.0,68045.0,0.062413]
[1722059689013,2.11232837,68046.0,68045.0,0.062413]
[1722059689224,1.79515503,68046.0,68045.0,0.062413]
[1722059690286,2.08907303,68046.0,68045.0,0.062413]
[1722059692470,2.1121351,68046.0,68045.0,0.062413]
[1722059692876,2.1121351,68046.0,68045.0,0.000913]
[1722059693519,2.08907303,68046.0,68045.0,0.000913]
[1722059695916,2.08889191,68046.0,68045.0,0.000913]
[1722059696664,2.11195406,68046.0,68045.0,0.000913]
[1722059699509,2.11181385,68046.0,68045.0,0.000913]
[1722059703135,1.74139585,68046.0,68045.0,0.000913]
[1722059703333,1.76789585,68046.0,68045.0,0.000913]
[1722059703534,1.74483759,68046.0,68045.0,0.000913]
[1722059705340,1.72356486,68046.0,68045.0,0.000913]
[1722059707664,1.77356486,68046.0,68045.0,0.000913]
[1722059708857,1.77350324,68046.0,68045.0,0.000913]
[1722059709267,1.72350324,68046.0,68045.0,0.000913]
[1722059710052,1.74656539,68046.0,68045.0,0.000913]
[1722059710253,1.67006539,68046.0,68045.0,0.142313]
[1722059710448,1.74656539,68046.0,68045.0,0.142313]
[1722059712067,1.61208088,68046.0,68045.0,0.142313]
[1722059712273,1.66999947,68046.0,68045.0,0.142313]
[1722059712804,1.74649947,68046.0,68045.0,0.060913]
[1722059715633,1.74667279,68046.0,68045.0,0.060913]
[1722059715984,1.67017279,68046.0,68045.0,0.060913]
[1722059716212,1.74667279,68046.0,68045.0,0.060913]
[1722059718481,1.72361064,68046.0,68045.0,0.060913]
[1722059719103,1.72440676,68046.0,68045.0,0.060913]
[1722059721841,1.74746891,68046.0,68045.0,0.060913]
[1722059722277,1.58901873,68046.0,68045.0,0.060913]
[1722059722613,1.72465105,68046.0,68045.0,0.060913]
[1722059728440,1.7477132,68046.0,68045.0,0.060913]
[1722059728641,1.7977132,68046.0,68045.0,0.060913]
[1722059728812,1.77465105,68046.0,68045.0,0.060913]
[1722059729221,1.63901873,68046.0,68045.0,0.000913]
[1722059729420,1.77456402,68046.0,68045.0,0.000913]
[1722059729845,1.7741172,68046.0,68045.0,0.000913]
[1722059730711,1.77412733,68046.0,68045.0,0.000913]
[1722059731092,1.72412733,68046.0,68045.0,0.000913]
[1722059731650,1.72452512,68046.0,68045.0,0.000913]
[1722059731855,1.74758736,68046.0,68045.0,0.000913]
[1722059732834,1.724669,68046.0,68045.0,0.000913]
[1722059733898,1.648169,68046.0,68045.0,0.000913]
[1722059734100,1.724669,68046.0,68045.0,0.000913]
[1722059734764,1.665755,68046.0,68045.0,0.000913]
[1722059736159,1.68881724,68046.0,68045.0,0.000913]
[1722059736359,1.55316697,68046.0,68045.0,0.000913]
[1722059736562,1.66702815,68046.0,68045.0,0.000913]
[1722059739872,1.6672165,68046.0,68045.0,0.000913]
[1722059740493,1.69027874,68046.0,68045.0,0.000913]
[1722059740929,1.6672165,68046.0,68045.0,0.000913]
[1722059742910,1.6672165,68046.0,68045.0,0.138313]
[1722059743239,1.53010473,68046.0,68045.0,0.138313]
[1722059743429,1.66719357,68046.0,68045.0,0.138313]
[1722059744096,1.69025572,68046.0,68045.0,0.138313]
[1722059744438,1.66719357,68046.0,68045.0,0.138313]
[1722059745491,1.66719357,68046.0,68045.0,0.062213]
[1722059746523,1.66719357,68046.0,68045.0,0.000913]
[1722059746745,1.66552354,68046.0,68045.0,0.000913]
[1722059746954,1.93295709,68046.0,68045.0,0.000913]
[1722059747379,2.08321666,68046.0,68045.0,0.000913]
[1722059747802,2.10627902,68046.0,68045.0,0.000913]
[1722059747934,2.08321666,68046.0,68045.0,0.000913]
[1722059748535,1.93295709,68046.0,68045.0,0.000913]
[1722059750129,1.93097969,68046.0,68045.0,0.000913]
[1722059751250,1.95404205,68046.0,68045.0,0.000913]
[1722059751655,1.79355351,68046.0,68045.0,0.000913]
[1722059754988,1.76661583,68046.0,68045.0,0.000913]
[1722059755195,1.74355351,68046.0,68045.0,0.000913]
[1722059755731,1.79355351,68046.0,68045.0,0.000913]
[1722059756977,1.79313815,68046.0,68045.0,0.000913]
[1722059758529,1.81620047,68046.0,68045.0,0.000913]
[1722059759896,1.79313815,68046.0,68045.0,0.000913]
[1722059760469,1.79321986,68046.0,68045.0,0.000913]
[1722059762886,1.81628231,68046.0,68045.0,0.000913]
[1722059763236,1.79313548,68046.0,68045.0,0.000913]
[1722059763589,1.79569063,68046.0,68045.0,0.000913]
[1722059764341,2.0223005,68046.0,68045.0,0.000913]
[1722059764841,1.88134869,68046.0,68045.0,0.000913]
[1722059766427,1.76938039,68046.0,68045.0,0.000913]
[1722059766634,1.88135604,68046.0,68045.0,0.000913]
[1722059768621,1.83135604,68046.0,68045.0,0.000913]
[1722059768835,1.81875604,68046.0,68045.0,0.000913]
[1722059769012,1.76875604,68046.0,68045.0,0.000913]
[1722059769969,1.79210181,68046.0,68045.0,0.000913]
[1722059770811,1.76903953,68046.0,68045.0,0.000913]
[1722059771354,1.69103953,68046.0,68045.0,0.139813]
[1722059771561,1.66542632,68046.0,68045.0,0.139813]
[1722059773246,1.66594284,68046.0,68045.0,0.139813]
[1722059773879,1.68900499,68046.0,68045.0,0.062813]
[1722059774336,1.66594284,68046.0,68045.0,0.062813]
[1722059776610,1.53010473,68046.0,68045.0,0.062813]
[1722059776810,1.66595317,68046.0,68045.0,0.062813]
[1722059777219,1.68901522,68046.0,68045.0,0.062813]
[1722059778501,1.66595317,68046.0,68045.0,0.062813]
[1722059780084,1.66592615,68046.0,68045.0,0.062813]
[1722059781254,1.35715045,68046.0,68045.0,0.062813]
[1722059782291,1.35715045,68046.0,68045.0,0.139613]
[1722059783082,1.38021252,68046.0,68045.0,0.139613]
[1722059783479,1.2443911,68046.0,68045.0,0.139613]
[1722059783688,1.3803214,68046.0,68045.0,0.139613]
[1722059784738,1.3803214,68046.0,68045.0,0.062813]
[1722059786950,1.38038207,68046.0,68045.0,0.062813]
[1722059790402,1.38050602,68046.0,68045.0,0.062813]
[1722059790573,1.38050642,68046.0,68045.0,0.062813]
[1722059791771,1.2443911,68046.0,68045.0,0.062813]
[1722059791972,1.38053637,68046.0,68045.0,0.062813]
[1722059792640,1.30403637,68046.0,68045.0,0.141813]
[1722059793125,1.38053637,68046.0,68045.0,0.141813]
[1722059793891,1.38086805,68046.0,68045.0,0.141813]
[1722059797326,1.38074362,68046.0,68045.0,0.141813]
[1722059797790,1.38074342,68046.0,68045.0,0.141813]
[1722059797991,1.38074342,68046.0,68045.0,0.062813]
[1722059798272,1.35768135,68046.0,68045.0,0.062813]
[1722059798772,1.35752824,68046.0,68045.0,0.062813]
[1722059800889,1.3577508,68046.0,68045.0,0.062813]
[1722059804207,1.22132903,68046.0,68045.0,0.000913]
[1722059804471,1.35717336,68046.0,68045.0,0.000913]
[1722059805431,1.43827336,68046.0,68045.0,0.000913]
[1722059807316,1.4613356,68046.0,68045.0,0.000913]
[1722059807698,1.460552,68046.0,68045.0,0.000913]
[1722059810872,1.8816277,68046.0,68045.0,0.000913]
[1722059811077,1.8316277,68046.0,68045.0,0.000913]
[1722059811319,1.74656697,68046.0,68045.0,0.000913]
[1722059811512,1.88105978,68046.0,68045.0,0.000913]
[1722059814703,1.75455978,68046.0,68045.0,0.000913]
[1722059815024,1.69225978,68046.0,68045.0,0.000913]
[1722059815227,1.76875978,68046.0,68045.0,0.000913]
[1722059818142,1.76926263,68046.0,68045.0,0.000913]
[1722059820943,1.7694515,68046.0,68045.0,0.000913]
[1722059823414,1.6929515,68046.0,68045.0,0.000913]
[1722059823606,1.7700515,68046.0,68045.0,0.000913]
[1722059824194,1.74698926,68046.0,68045.0,0.0024672]
[1722059824807,1.74698926,68046.0,68045.0,0.000913]
[1722059827494,1.77005159,68046.0,68045.0,0.000913]
[1722059827706,1.77003981,68046.0,68045.0,0.000913]
[1722059830422,1.76994422,68046.0,68045.0,0.000913]
[1722059831091,1.63486706,68046.0,68045.0,0.000913]
[1722059831247,1.76994419,68046.0,68045.0,0.000913]
[1722059832287,1.76994419,68046.0,68045.0,0.00061535]
[1722059832867,1.74688186,68046.0,68045.0,0.00061535]
[1722059833269,1.66518186,68046.0,68045.0,0.00061535]
[1722059834713,1.66509844,68046.0,68045.0,0.00061535]
[1722059836348,1.68816077,68046.0,68045.0,0.00061535]
[1722059837951,1.62836706,68046.0,68045.0,0.00061535]
[1722059838188,1.87841358,68046.0,68045.0,0.00061535]
[1722059838888,1.82841358,68046.0,68045.0,0.00061535]
[1722059840042,1.87841358,68046.0,68045.0,0.00061535]
[1722059841469,1.87798808,68046.0,68045.0,0.00061535]
[1722059842999,1.81298808,68046.0,68045.0,0.00061535]
[1722059843423,1.76298808,68046.0,68045.0,0.00061535]
[1722059845500,1.73992575,68046.0,68045.0,0.00061535]
[1722059848439,1.74003117,68046.0,68045.0,0.00061535]
[1722059848638,1.76309346,68046.0,68045.0,0.00061535]
[1722059851931,1.76312654,68046.0,68045.0,0.00061535]
[1722059852155,1.62836702,68046.0,68045.0,0.00061535]
[1722059853198,1.67836702,68046.0,68045.0,0.00061535]
[1722059853340,1.65530473,68046.0,68045.0,0.00061535]
[1722059854326,1.8055643,68046.0,68045.0,0.00061535]
[1722059854924,1.9404872,68046.0,68045.0,0.00061535]
[1722059856815,1.96354961,68046.0,68045.0,0.00061535]
[1722059857215,1.81329004,68046.0,68045.0,0.00061535]
[1722059858146,1.67836714,68046.0,68045.0,0.00061535]
[1722059858308,1.7627144,68046.0,68045.0,0.00061535]
[1722059860694,1.7635544,68046.0,68045.0,0.00061535]
[1722059865562,1.74049199,68046.0,68045.0,0.00061535]
[1722059866142,1.66399199,68046.0,68045.0,0.00061535]
[1722059866364,1.66399199,68046.0,68045.0,0.14061535]
[1722059866365,1.66529199,68046.0,68045.0,0.14061535]
[1722059868199,1.66529199,68046.0,68045.0,0.06091535]
[1722059868819,1.68886653,68046.0,68045.0,0.06091535]
[1722059872315,1.68886944,68046.0,68045.0,0.06091535]
[1722059875173,1.66580728,68046.0,68045.0,0.06091535]
[1722059875580,1.53094473,68046.0,68045.0,0.06091535]
[1722059875842,1.66577616,68046.0,68045.0,0.06091535]
[1722059876629,1.74717616,68046.0,68045.0,0.00061535]
[1722059878795,1.77023861,68046.0,68045.0,0.00061535]
[1722059879080,1.74685915,68046.0,68045.0,0.00061535]
[1722059880920,1.79150723,68046.0,68045.0,0.00061535]
[1722059881284,1.74685915,68046.0,68045.0,0.00061535]
[1722059881747,1.74686212,68046.0,68045.0,0.00061535]
[1722059883070,1.76992457,68046.0,68045.0,0.00061535]
[1722059883787,1.81992457,68046.0,68045.0,0.00061535]
[1722059884686,1.76992457,68046.0,68045.0,0.00061535]
[1722059885085,1.63540718,68046.0,68045.0,0.00061535]
[1722059885294,1.76955996,68046.0,68045.0,0.00061535]
[1722059886163,1.81955996,68046.0,68045.0,0.00061535]
[1722059886365,1.96981953,68046.0,68045.0,0.00061535]
[1722059886762,1.99287727,68046.0,68045.0,0.00061535]
[1722059887748,1.94287727,68046.0,68045.0,0.00061535]
[1722059888738,1.94272742,68046.0,68045.0,0.00061535]
[1722059889997,1.99272742,68046.0,68045.0,0.00061535]
[1722059891424,1.84246785,68046.0,68045.0,0.00061535]
[1722059891727,1.79246785,68046.0,68045.0,0.00061535]
[1722059892190,1.79231263,68046.0,68045.0,0.00061535]
[1722059892835,1.76925018,68046.0,68045.0,0.00061535]
[1722059899033,1.63540247,68046.0,68045.0,0.00061535]
[1722059899169,1.76929355,68046.0,68045.0,0.00061535]
[1722059901792,1.79235575,68046.0,68045.0,0.00061535]
[1722059902478,1.70846467,68046.0,68045.0,0.00061535]
[1722059902592,1.84218789,68046.0,68045.0,0.00061535]
[1722059903004,2.13610589,68046.0,68045.0,0.00061535]
[1722059903264,2.15910589,68046.0,68045.0,0.00061535]
[1722059904055,2.30936546,68046.0,68045.0,0.00061535]
[1722059904255,2.10910589,68046.0,68045.0,0.00061535]
[1722059904480,1.81518789,68046.0,68045.0,0.00061535]
[1722059904836,1.81518789,68046.0,68045.0,0.00216955]
[1722059905026,2.10910589,68046.0,68045.0,0.00216955]
[1722059905206,2.10910589,68046.0,68045.0,0.00061535]
[1722059905772,2.15910589,68046.0,68045.0,0.00061535]
[1722059905995,1.97538267,68046.0,68045.0,0.00061535]
[1722059906192,2.10877575,68046.0,68045.0,0.00061535]
[1722059906893,2.15877575,68046.0,68045.0,0.00061535]
[1722059907098,2.22407575,68046.0,68045.0,0.00061535]
[1722059907849,2.27331946,68046.0,68045.0,0.00061535]
[1722059909922,2.25025726,68046.0,68045.0,0.00061535]
[1722059912850,2.14807411,68046.0,68045.0,0.00061535]
[1722059913053,2.22457411,68046.0,68045.0,0.00061535]
[1722059914327,2.2015113,68046.0,68045.0,0.00061535]
[1722059914816,2.06762047,68046.0,68045.0,0.00061535]
[1722059915042,2.20296662,68046.0,68045.0,0.00061535]
[1722059915247,2.28214853,68046.0,68045.0,0.00061535]
[1722059917172,2.20296662,68046.0,68045.0,0.00061535]
[1722059917696,2.22602952,68046.0,68045.0,0.00061535]
[1722059917908,2.20296662,68046.0,68045.0,0.00061535]
[1722059919782,2.06762047,68046.0,68045.0,0.00061535]
[1722059919987,2.20387794,68046.0,68045.0,0.00061535]
[1722059921267,2.22694084,68046.0,68045.0,0.00061535]
[1722059923336,2.22707452,68046.0,68045.0,0.00061535]
[1722059924744,2.37733409,68046.0,68045.0,0.00061535]
[1722059925297,2.37333409,68046.0,68045.0,0.00061535]
[1722059925518,2.38533409,68046.0,68045.0,0.00161535]
[1722059926500,2.38233409,68046.0,68045.0,0.00161535]
[1722059926704,2.39435301,68046.0,68045.0,0.00261535]
[1722059927241,2.37129011,68046.0,68045.0,0.00261535]
[1722059928376,2.37129011,68046.0,68045.0,1e-08]
[1722059929996,2.22103054,68046.0,68045.0,1e-08]
[1722059930659,2.24409375,68046.0,68045.0,1e-08]
[1722059930872,2.22103054,68046.0,68045.0,1e-08]
[1722059933636,2.08462047,68046.0,68045.0,1e-08]
[1722059933980,2.22092497,68046.0,68045.0,1e-08]
[1722059934788,2.24398818,68046.0,68045.0,1e-08]
[1722059936105,2.32950864,68046.0,68045.0,1e-08]
[1722059936481,2.24398818,68046.0,68045.0,1e-08]
[1722059937185,2.24391505,68046.0,68045.0,1e-08]
[1722059939743,2.22085184,68046.0,68045.0,1e-08]
[1722059940513,2.08462047,68046.0,68045.0,1e-08]
[1722059940717,2.22082866,68046.0,68045.0,1e-08]
[1722059942874,2.24389187,68046.0,68045.0,1e-08]
[1722059943260,2.24393529,68046.0,68045.0,1e-08]
[1722059946820,2.24401826,68046.0,68045.0,1e-08]
[1722059947741,2.37121462,68046.0,68045.0,1e-08]
[1722059948636,1.65383705,68046.0,68045.0,1e-08]
[1722059948891,1.73033705,68046.0,68045.0,0.06050001]
[1722059949908,1.65383705,68046.0,68045.0,0.06050001]
[1722059950121,1.73161685,68046.0,68045.0,0.06050001]
[1722059950263,1.65511685,68046.0,68045.0,0.06050001]
[1722059950918,1.73161685,68046.0,68045.0,0.06050001]
[1722059951154,1.75467995,68046.0,68045.0,0.06050001]
[1722059951300,1.73161685,68046.0,68045.0,0.06050001]
[1722059951500,1.70861685,68046.0,68045.0,0.06050001]
[1722059951905,1.68555911,68046.0,68045.0,0.06050001]
[1722059955838,1.70862217,68046.0,68045.0,0.06050001]
[1722059956398,1.70862217,68046.0,68045.0,0.06142401]
[1722059956846,1.70902106,68046.0,68045.0,0.06142401]
[1722059957233,1.70902106,68046.0,68045.0,0.4658538]
[1722059957234,0.18591633,68046.0,68045.0,0.4658538]
[1722059957439,0.10004685,68046.0,68045.0,0.9067378]
[1722059957660,0.07698379,68046.0,68045.0,0.9067378]
[1722059957860,0.20940987,68046.0,68045.0,0.6128148]
[1722059958023,0.18540987,68046.0,68045.0,0.61281479]
[1722059958404,0.07798379,68046.0,68045.0,0.538685]
[1722059958897,0.05298379,68046.0,68045.0,0.390724]
[1722059959020,0.05298379,68046.0,68045.0,0.3922782]
[1722059959225,0.05398379,68046.0,68045.0,0.5432392]
[1722059959874,0.05398379,68046.0,68045.0,0.541685]
[1722059960090,0.00284,68046.0,68045.0,0.547685]
[1722059960695,0.02589911,68046.0,68045.0,0.547685]
[1722059960955,0.07102257,68046.0,68045.0,0.841608]
[1722059961814,0.04796346,68046.0,68045.0,0.841608]
[1722059962017,0.04796346,68046.0,68045.0,0.547685]
[1722059963724,0.07102274,68046.0,68045.0,0.547685]
[1722059964142,0.18116251,68046.0,68045.0,0.547685]
[1722059964366,0.13603905,68046.0,68045.0,0.547685]
[1722059965111,0.11297977,68046.0,68045.0,0.547685]
[1722059965890,0.11297977,68046.0,68045.0,0.5492392]
[1722059966281,0.11297977,68046.0,68045.0,0.547685]
[1722059966451,0.11297977,68046.0,68045.0,0.5492392]
[1722059967279,0.00284,68046.0,68045.0,0.5492392]
[1722059968609,0.02589924,68046.0,68045.0,0.5492392]
[1722059969669,0.00284,68046.0,68045.0,0.5492392]
[1722059970234,0.09090487,68046.0,68045.0,0.5492392]
[1722059972328,0.09090487,68046.0,68045.0,0.4022782]
[1722059972714,0.02589933,68046.0,68045.0,0.400724]